bitfinex/quotes_SOLUSD_20230116
["timestamp","ask_amount","ask_price","bid_price","bid_amount"]
[1673848280244,17.0,23.405,23.384,20.0]
[1673848280556,20.0,23.404,23.384,20.0]
[1673848280742,17.0,23.403,23.384,20.0]
[1673848281184,20.0,23.402,23.384,20.0]
[1673848281373,17.0,23.401,23.384,20.0]
[1673848282217,296.24685273,23.407,23.39,12.45]
[1673848282430,22.2502148,23.429,23.4,12.41]
[1673848282650,119.6374,23.431,23.411,20.0]
[1673848282861,108.2212,23.439,23.412,17.0]
[1673848283183,119.6374,23.438,23.42,12.48]
[1673848283794,20.0,23.437,23.42,12.48]
[1673848284004,20.0,23.437,23.411,20.0]
[1673848284224,119.6374,23.438,23.411,20.0]
[1673848284974,20.0,23.437,23.411,20.0]
[1673848285184,20.0,23.437,23.42,12.37]
[1673848286450,17.0,23.436,23.42,12.37]
[1673848286642,20.0,23.435,23.42,12.37]
[1673848286853,17.0,23.434,23.42,12.37]
[1673848287405,20.0,23.433,23.42,12.37]
[1673848287811,20.0,23.437,23.42,12.37]
[1673848288873,17.0,23.436,23.42,12.37]
[1673848289094,20.0,23.435,23.411,20.0]
[1673848289389,17.0,23.434,23.411,20.0]
[1673848289611,20.0,23.432,23.411,20.0]
[1673848289796,17.0,23.431,23.411,20.0]
[1673848290422,20.0,23.435,23.411,20.0]
[1673848290632,20.0,23.437,23.411,20.0]
[1673848290843,20.0,23.436,23.411,20.0]
[1673848291072,20.0,23.435,23.411,20.0]
[1673848291488,20.0,23.463,23.421,20.0]
[1673848291691,12.46,23.45,23.421,20.0]
[1673848292757,17.0,23.449,23.421,20.0]
[1673848293387,20.0,23.448,23.421,20.0]
[1673848293576,17.0,23.447,23.421,20.0]
[1673848293791,20.0,23.446,23.421,20.0]
[1673848294023,17.0,23.445,23.421,20.0]
[1673848294230,20.0,23.444,23.421,20.0]
[1673848294427,12.42,23.44,23.414,20.0]
[1673848294644,12.42,23.43,23.413,20.0]
[1673848294971,37.0,23.439,23.413,20.0]
[1673848294972,37.0,23.429,23.413,20.0]
[1673848302207,37.0,23.429,23.41,12.48]
[1673848302630,20.0,23.429,23.41,12.48]
[1673848302825,233.9244,23.439,23.411,17.0]
[1673848302826,20.0,23.438,23.411,17.0]
[1673848303372,20.0,23.438,23.41,12.48]
[1673848304321,20.0,23.437,23.41,12.48]
[1673848304533,20.0,23.436,23.41,12.48]
[1673848304722,17.0,23.435,23.41,12.48]
[1673848304934,20.0,23.434,23.41,12.48]
[1673848305144,17.0,23.433,23.41,12.48]
[1673848305452,20.0,23.432,23.41,12.48]
[1673848305666,17.0,23.431,23.41,12.48]
[1673848306186,20.0,23.43,23.41,12.48]
[1673848306397,17.0,23.429,23.41,12.48]
[1673848306620,20.0,23.428,23.41,12.48]
[1673848306838,17.0,23.427,23.41,12.48]
[1673848307047,20.0,23.426,23.41,12.48]
[1673848307258,17.0,23.425,23.41,12.48]
[1673848307456,20.0,23.424,23.41,12.48]
[1673848307667,17.0,23.423,23.41,12.48]
[1673848307881,20.0,23.422,23.41,12.48]
[1673848308092,17.0,23.421,23.41,12.48]
[1673848308508,20.0,23.422,23.41,12.48]
[1673848308724,20.0,23.437,23.41,12.48]
[1673848308940,17.0,23.436,23.41,12.48]
[1673848309133,20.0,23.435,23.41,12.48]
[1673848309352,12.42,23.43,23.41,12.48]
[1673848309559,37.0,23.429,23.41,12.48]
[1673848310732,37.0,23.429,23.405,20.0]
[1673848311466,37.0,23.429,23.406,108.7706]
[1673848312835,37.0,23.429,23.407,20.0]
[1673848315371,20.0,23.428,23.406,108.7706]
[1673848315557,17.0,23.427,23.406,108.7706]
[1673848315769,20.0,23.426,23.406,108.7706]
[1673848315980,20.0,23.424,23.375,148.7]
[1673848316190,20.0,23.424,23.392,116.5509]
[1673848316191,12.46,23.42,23.392,116.5509]
[1673848316410,37.0,23.419,23.392,116.5509]
[1673848316737,12.48,23.41,23.392,116.5509]
[1673848316928,37.0,23.409,23.392,116.5509]
[1673848321148,70.17114472,23.409,23.392,116.5509]
[1673848321970,37.0,23.409,23.392,116.5509]
[1673848322306,20.0,23.408,23.381,20.0]
[1673848322508,37.0,23.407,23.382,116.1553]
[1673848322724,20.0,23.406,23.382,116.1553]
[1673848322932,37.0,23.405,23.382,116.1553]
[1673848323462,20.0,23.404,23.382,116.1553]
[1673848323657,20.0,23.403,23.382,116.1553]
[1673848324069,20.0,23.403,23.383,20.0]
[1673848324276,20.0,23.409,23.383,20.0]
[1673848324496,20.0,23.406,23.383,20.0]
[1673848324722,20.0,23.405,23.383,20.0]
[1673848325365,17.0,23.404,23.383,20.0]
[1673848325557,20.0,23.403,23.383,20.0]
[1673848325768,17.0,23.402,23.383,20.0]
[1673848325989,20.0,23.401,23.383,20.0]
[1673848326197,17.0,23.4,23.383,20.0]
[1673848326512,20.0,23.401,23.383,20.0]
[1673848326513,20.0,23.401,23.39,12.41]
[1673848326726,20.0,23.408,23.391,17.0]
[1673848326919,138.74916719,23.417,23.39,12.41]
[1673848327124,138.74916719,23.417,23.392,20.0]
[1673848327335,110.8023,23.417,23.392,20.0]
[1673848327985,17.0,23.409,23.392,20.0]
[1673848328724,110.8023,23.417,23.392,20.0]
[1673848328925,20.0,23.416,23.393,17.0]
[1673848329125,20.0,23.415,23.39,12.41]
[1673848329332,20.0,23.409,23.387,118.2408]
[1673848329661,40.0,23.409,23.387,118.2408]
[1673848329881,37.0,23.408,23.387,118.2408]
[1673848331987,12.46,23.4,23.38,32.48]
[1673848332178,37.0,23.399,23.38,32.48]
[1673848332594,37.0,23.399,23.38,20.0]
[1673848337554,37.0,23.399,23.38,32.41]
[1673848337969,37.0,23.399,23.383,20.0]
[1673848338276,20.0,23.399,23.383,20.0]
[1673848339871,17.0,23.398,23.383,20.0]
[1673848340062,20.0,23.397,23.383,20.0]
[1673848340272,17.0,23.396,23.383,20.0]
[1673848340691,20.0,23.395,23.383,20.0]
[1673848341552,20.0,23.399,23.383,20.0]
[1673848342287,20.0,23.406,23.383,20.0]
[1673848343217,17.0,23.405,23.383,20.0]
[1673848343424,20.0,23.404,23.383,20.0]
[1673848343639,17.0,23.403,23.383,20.0]
[1673848343969,20.0,23.402,23.383,20.0]
[1673848344176,17.0,23.401,23.383,20.0]
[1673848344367,20.0,23.4,23.383,20.0]
[1673848344619,17.0,23.399,23.38,32.41]
[1673848344799,20.0,23.398,23.38,12.41]
[1673848345002,17.0,23.397,23.38,12.41]
[1673848345211,20.0,23.396,23.377,20.0]
[1673848345436,17.0,23.395,23.377,20.0]
[1673848345650,20.0,23.394,23.377,20.0]
[1673848345841,17.0,23.393,23.377,20.0]
[1673848346053,20.0,23.392,23.376,113.4389]
[1673848346253,17.0,23.391,23.376,113.4389]
[1673848347028,63.62201738,23.391,23.376,113.4389]
[1673848347329,27.94686719,23.39,23.376,113.4389]
[1673848347533,17.0,23.389,23.376,113.4389]
[1673848347968,27.94686719,23.388,23.376,113.4389]
[1673848348153,17.0,23.387,23.376,113.4389]
[1673848348701,17.0,23.389,23.376,113.4389]
[1673848349748,44.94686719,23.389,23.376,113.4389]
[1673848350067,44.94686719,23.389,23.361,112.3906]
[1673848350068,20.0,23.387,23.361,112.3906]
[1673848350380,88.82201738,23.386,23.364,111.8906]
[1673848350571,131.22186975,23.386,23.364,111.8906]
[1673848350783,94.22186975,23.385,23.365,20.0]
[1673848350992,20.0,23.384,23.365,20.0]
[1673848351202,37.0,23.386,23.365,20.0]
[1673848351424,37.0,23.386,23.367,20.0]
[1673848351635,37.0,23.386,23.371,20.0]
[1673848353954,20.0,23.386,23.371,20.0]
[1673848354270,20.0,23.389,23.373,20.0]
[1673848354480,73.38005289,23.396,23.373,20.0]
[1673848354481,20.0,23.395,23.373,20.0]
[1673848354680,20.0,23.395,23.375,20.0]
[1673848354884,20.0,23.395,23.376,17.0]
[1673848355103,20.0,23.395,23.38,12.37]
[1673848355310,20.0,23.399,23.38,12.37]
[1673848355522,20.0,23.399,23.381,20.0]
[1673848356785,86.90676975,23.407,23.381,20.0]
[1673848356786,20.0,23.405,23.381,20.0]
[1673848356999,20.0,23.404,23.381,20.0]
[1673848357421,17.0,23.403,23.381,20.0]
[1673848357633,20.0,23.402,23.381,20.0]
[1673848357843,17.0,23.401,23.381,20.0]
[1673848358162,16.63,23.4,23.377,111.2128]
[1673848358360,37.0,23.399,23.377,111.2128]
[1673848358570,20.0,23.398,23.377,111.2128]
[1673848358779,17.0,23.397,23.378,20.0]
[1673848358993,20.0,23.396,23.378,20.0]
[1673848359212,17.0,23.395,23.378,20.0]
[1673848359421,16.63,23.4,23.378,20.0]
[1673848359636,16.63,23.41,23.38,16.55]
[1673848359847,16.63,23.41,23.381,20.0]
[1673848360160,110.3403,23.412,23.381,20.0]
[1673848360372,110.3403,23.412,23.382,17.0]
[1673848360769,110.3403,23.412,23.383,20.0]
[1673848360999,17.0,23.411,23.384,17.0]
[1673848361188,17.0,23.411,23.385,20.0]
[1673848361615,20.0,23.41,23.385,20.0]
[1673848361833,17.0,23.409,23.385,20.0]
[1673848362157,20.0,23.408,23.385,20.0]
[1673848362346,17.0,23.407,23.385,20.0]
[1673848362557,20.0,23.406,23.385,20.0]
[1673848362893,17.0,23.405,23.385,20.0]
[1673848363091,20.0,23.404,23.385,20.0]
[1673848363301,17.0,23.403,23.385,20.0]
[1673848363830,20.0,23.402,23.385,20.0]
[1673848364555,20.0,23.41,23.385,20.0]
[1673848364762,37.0,23.409,23.385,20.0]
[1673848365084,20.0,23.408,23.385,20.0]
[1673848365298,17.0,23.407,23.385,20.0]
[1673848365508,20.0,23.406,23.385,20.0]
[1673848365720,17.0,23.405,23.385,20.0]
[1673848366450,20.0,23.404,23.385,20.0]
[1673848366667,17.0,23.403,23.385,20.0]
[1673848366988,20.0,23.404,23.386,17.0]
[1673848367309,20.0,23.41,23.386,17.0]
[1673848367621,17.0,23.409,23.388,20.0]
[1673848367934,20.0,23.408,23.387,237.1937]
[1673848368155,37.0,23.407,23.387,237.1937]
[1673848368460,20.0,23.406,23.387,237.1937]
[1673848368652,17.0,23.405,23.388,20.0]
[1673848368867,20.0,23.404,23.388,20.0]
[1673848369066,17.0,23.403,23.388,20.0]
[1673848369282,20.0,23.402,23.388,20.0]
[1673848369626,17.0,23.401,23.388,20.0]
[1673848376461,17.0,23.401,23.385,20.0]
[1673848376681,17.0,23.401,23.383,20.0]
[1673848376682,26.08128052,23.4,23.383,20.0]
[1673848376859,17.0,23.399,23.383,20.0]
[1673848377300,17.0,23.401,23.383,20.0]
[1673848380983,47.77953738,23.408,23.383,20.0]
[1673848381175,20.0,23.407,23.384,17.0]
[1673848381387,20.0,23.407,23.383,20.0]
[1673848381812,20.0,23.408,23.383,20.0]
[1673848382775,20.0,23.408,23.385,20.0]
[1673848383619,43.63678404,23.416,23.39,16.63]
[1673848383930,109.5717,23.419,23.392,20.0]
[1673848384134,109.5717,23.419,23.393,20.0]
[1673848384351,109.5717,23.419,23.394,20.0]
[1673848384963,17.0,23.412,23.394,20.0]
[1673848385861,109.5717,23.419,23.394,20.0]
[1673848386021,109.5717,23.419,23.393,20.0]
[1673848386228,20.0,23.412,23.391,110.4901]
[1673848386433,20.0,23.411,23.391,110.4901]
[1673848386646,20.0,23.41,23.391,110.4901]
[1673848386856,17.0,23.409,23.391,110.4901]
[1673848387073,20.0,23.408,23.392,20.0]
[1673848387493,17.0,23.407,23.392,20.0]
[1673848387805,20.0,23.406,23.392,20.0]
[1673848388015,17.0,23.405,23.391,110.4901]
[1673848388447,17.0,23.407,23.391,110.4901]
[1673848388661,20.0,23.406,23.391,110.4901]
[1673848388851,17.0,23.405,23.385,20.0]
[1673848390760,60.63678404,23.405,23.385,20.0]
[1673848393372,60.63678404,23.405,23.388,20.0]
[1673848393598,17.0,23.405,23.388,20.0]
[1673848394630,20.0,23.406,23.388,20.0]
[1673848394839,20.0,23.409,23.388,20.0]
[1673848395045,20.0,23.412,23.388,20.0]
[1673848395811,16.63,23.41,23.388,20.0]
[1673848396002,16.63,23.41,23.385,20.0]
[1673848396003,37.0,23.409,23.385,20.0]
[1673848396212,37.0,23.409,23.382,108.5895]
[1673848396420,59.12723237,23.408,23.382,108.5895]
[1673848396631,37.0,23.407,23.37,16.6]
[1673848396859,16.63,23.4,23.372,110.4834]
[1673848397169,37.0,23.399,23.372,110.4834]
[1673848397355,20.0,23.398,23.372,110.4834]
[1673848397569,37.0,23.397,23.372,110.4834]
[1673848398224,43.63678404,23.396,23.372,110.4834]
[1673848398422,37.0,23.395,23.372,110.4834]
[1673848400306,76.12723237,23.395,23.372,110.4834]
[1673848400509,43.63678404,23.394,23.372,110.4834]
[1673848400744,16.63,23.39,23.362,20.0]
[1673848400960,37.0,23.389,23.365,134.7685]
[1673848401155,86.18345071,23.389,23.365,134.7685]
[1673848401364,69.18345071,23.388,23.365,134.7685]
[1673848401688,37.0,23.387,23.365,134.7685]
[1673848401905,86.18345071,23.387,23.365,134.7685]
[1673848402104,49.18345071,23.386,23.365,134.7685]
[1673848402300,20.0,23.385,23.365,134.7685]
[1673848402505,37.0,23.385,23.365,134.7685]
[1673848402720,86.18345071,23.385,23.365,134.7685]
[1673848403576,80.11806456,23.384,23.361,112.3906]
[1673848403882,91.03678404,23.383,23.361,112.3906]
[1673848404101,20.0,23.382,23.361,112.3906]
[1673848404308,16.63,23.38,23.351,20.0]
[1673848404516,20.0,23.379,23.351,20.0]
[1673848404733,37.0,23.378,23.351,20.0]
[1673848404939,20.0,23.377,23.351,20.0]
[1673848405150,20.0,23.375,23.351,20.0]
[1673848405343,17.0,23.374,23.351,20.0]
[1673848405780,71.03678404,23.374,23.351,20.0]
[1673848405990,54.03678404,23.374,23.351,20.0]
[1673848406187,20.0,23.372,23.35,129.7447]
[1673848406400,17.0,23.371,23.35,129.7447]
[1673848406733,71.03678404,23.371,23.35,129.7447]
[1673848406945,54.03678404,23.37,23.35,129.7447]
[1673848407131,17.0,23.369,23.35,16.58]
[1673848407561,71.03678404,23.369,23.351,20.0]
[1673848409144,71.03678404,23.369,23.35,16.58]
[1673848409557,20.0,23.368,23.35,16.58]
[1673848409784,17.0,23.367,23.35,16.58]
[1673848410100,20.0,23.366,23.35,16.58]
[1673848410309,17.0,23.365,23.351,20.0]
[1673848410714,20.0,23.366,23.351,20.0]
[1673848410924,17.0,23.365,23.351,20.0]
[1673848411254,17.0,23.367,23.351,20.0]
[1673848411469,20.0,23.366,23.351,20.0]
[1673848411776,17.0,23.365,23.351,20.0]
[1673848417026,20.0,23.366,23.351,20.0]
[1673848417350,54.03678404,23.374,23.352,17.0]
[1673848417556,37.0,23.373,23.352,17.0]
[1673848417872,20.0,23.377,23.353,61.46196354]
[1673848418089,20.0,23.379,23.355,20.0]
[1673848418283,54.03678404,23.382,23.355,20.0]
[1673848418606,26.08128052,23.388,23.356,38.46196354]
[1673848418810,16.63,23.39,23.36,16.6]
[1673848419009,16.63,23.39,23.361,131.3194]
[1673848419223,16.63,23.39,23.362,40.0]
[1673848419667,20.0,23.389,23.362,40.0]
[1673848420059,17.0,23.388,23.362,40.0]
[1673848420277,20.0,23.387,23.362,40.0]
[1673848420611,17.0,23.386,23.362,40.0]
[1673848420792,20.0,23.385,23.362,40.0]
[1673848421003,17.0,23.384,23.362,40.0]
[1673848421423,17.0,23.386,23.362,40.0]
[1673848421634,20.0,23.385,23.362,40.0]
[1673848421868,17.0,23.384,23.362,40.0]
[1673848422698,20.0,23.385,23.37,12.49]
[1673848423004,20.0,23.386,23.37,12.49]
[1673848423219,20.0,23.389,23.37,12.49]
[1673848423860,17.0,23.388,23.37,12.49]
[1673848424051,20.0,23.387,23.37,12.49]
[1673848424485,12.6,23.4,23.37,12.49]
[1673848424700,12.6,23.4,23.371,154.7554]
[1673848425014,12.6,23.4,23.372,20.0]
[1673848425213,12.6,23.4,23.373,20.0]
[1673848425425,17.0,23.393,23.374,20.0]
[1673848425624,17.0,23.393,23.375,17.0]
[1673848425836,17.0,23.393,23.376,20.0]
[1673848427942,17.0,23.393,23.374,139.6737]
[1673848432994,17.0,23.393,23.374,119.6737]
[1673848433403,12.42,23.39,23.366,20.0]
[1673848433612,20.0,23.389,23.366,20.0]
[1673848433822,17.0,23.388,23.366,20.0]
[1673848434056,20.0,23.387,23.366,20.0]
[1673848434365,17.0,23.386,23.366,20.0]
[1673848434578,20.0,23.385,23.366,20.0]
[1673848434770,17.0,23.384,23.366,20.0]
[1673848443835,17.0,23.384,23.366,19.92995203]
[1673848449393,20.0,23.385,23.37,16.49]
[1673848449610,117.6285,23.394,23.371,20.0]
[1673848449934,117.6285,23.394,23.373,20.0]
[1673848450150,117.6285,23.394,23.374,17.0]
[1673848450551,117.6285,23.394,23.375,20.0]
[1673848450975,17.0,23.393,23.375,20.0]
[1673848454786,20.0,23.408,23.375,20.0]
[1673848455092,20.0,23.399,23.381,20.0]
[1673848456353,17.0,23.398,23.381,20.0]
[1673848456540,20.0,23.397,23.381,20.0]
[1673848456750,17.0,23.396,23.381,20.0]
[1673848456955,20.0,23.395,23.381,20.0]
[1673848458871,35.57389904,23.41,23.382,17.0]
[1673848459088,16.6,23.42,23.382,17.0]
[1673848459089,119.1758,23.418,23.39,16.48]
[1673848459275,119.1758,23.418,23.391,37.0]
[1673848459483,119.1758,23.418,23.391,20.0]
[1673848459717,119.1758,23.418,23.392,20.0]
[1673848459923,119.1758,23.418,23.393,17.0]
[1673848460336,119.1758,23.418,23.394,20.0]
[1673848460747,119.1758,23.418,23.4,16.48]
[1673848460953,119.1758,23.418,23.4,133.0653]
[1673848461380,119.1758,23.418,23.401,20.0]
[1673848461913,17.0,23.417,23.401,20.0]
[1673848462335,119.1758,23.418,23.401,20.0]
[1673848462757,79.0575,23.426,23.401,20.0]
[1673848462974,79.0575,23.426,23.402,20.0]
[1673848463165,79.0575,23.426,23.403,20.0]
[1673848463595,79.0575,23.426,23.403,132.9263]
[1673848464129,20.0,23.425,23.403,132.9263]
[1673848464779,17.0,23.424,23.403,132.9263]
[1673848465824,20.0,23.425,23.403,132.9263]
[1673848467513,17.0,23.424,23.403,132.9263]
[1673848468452,17.0,23.424,23.403,112.9263]
[1673848468864,17.0,23.424,23.404,20.0]
[1673848470245,20.0,23.425,23.41,16.47]
[1673848470455,20.0,23.432,23.411,17.0]
[1673848470668,20.0,23.432,23.412,20.0]
[1673848470868,20.0,23.434,23.412,20.0]
[1673848472468,20.0,23.432,23.412,20.0]
[1673848472656,17.0,23.431,23.41,16.47]
[1673848472992,20.0,23.43,23.41,16.47]
[1673848473195,37.0,23.429,23.41,16.47]
[1673848473406,20.0,23.428,23.41,16.47]
[1673848473623,37.0,23.427,23.41,16.47]
[1673848474462,37.0,23.427,23.404,20.0]
[1673848475809,37.0,23.427,23.405,17.0]
[1673848476139,37.0,23.427,23.406,20.0]
[1673848477385,20.0,23.426,23.403,112.9263]
[1673848477595,37.0,23.425,23.403,112.9263]
[1673848478446,37.0,23.425,23.404,20.0]
[1673848480880,16.59,23.42,23.4,116.5853]
[1673848481182,37.0,23.419,23.4,116.5853]
[1673848482554,78.25847672,23.419,23.4,116.5853]
[1673848484426,41.25847672,23.419,23.4,116.5853]
[1673848484633,32.12069795,23.422,23.401,20.0]
[1673848484850,110.4618,23.424,23.401,20.0]
[1673848485064,110.4618,23.424,23.402,20.0]
[1673848485271,110.4618,23.424,23.403,20.0]
[1673848485492,110.4618,23.424,23.404,20.0]
[1673848486113,16.59,23.43,23.404,20.0]
[1673848486325,20.0,23.429,23.406,20.0]
[1673848486864,17.0,23.428,23.406,20.0]
[1673848487075,20.0,23.427,23.406,20.0]
[1673848487298,17.0,23.426,23.406,20.0]
[1673848487710,20.0,23.425,23.406,20.0]
[1673848487900,17.0,23.424,23.406,20.0]
[1673848488108,16.59,23.43,23.406,20.0]
[1673848488441,272.72874417,23.461,23.406,20.0]
[1673848488442,102.23692322,23.474,23.42,82.78]
[1673848488750,16.59,23.46,23.43,16.59]
[1673848488961,16.59,23.46,23.431,20.0]
[1673848489170,16.59,23.46,23.432,20.0]
[1673848489380,16.59,23.46,23.433,17.0]
[1673848489579,114.9518,23.462,23.433,17.0]
[1673848489799,114.9518,23.462,23.433,38.46196354]
[1673848490209,20.0,23.461,23.433,38.46196354]
[1673848490420,108.1815,23.465,23.44,16.51]
[1673848490646,16.59,23.45,23.424,32.33612786]
[1673848490835,95.05196354,23.429,23.393,128.54325507]
[1673848491057,16.59,23.42,23.362,119.51]
[1673848491271,16.59,23.42,23.39,16.59]
[1673848491487,99.96939327,23.428,23.39,16.59]
[1673848491706,37.0,23.427,23.39,16.59]
[1673848491898,37.0,23.427,23.4,16.59]
[1673848492111,21.46196354,23.426,23.4,16.59]
[1673848492324,37.0,23.425,23.4,16.59]
[1673848492560,20.0,23.425,23.41,16.51]
[1673848492752,21.46196354,23.434,23.41,16.51]
[1673848493266,21.46196354,23.434,23.412,20.0]
[1673848493472,20.0,23.459,23.412,20.0]
[1673848493473,76.30570803,23.48,23.436,128.7]
[1673848493686,76.30570803,23.48,23.435,21.46196354]
[1673848493687,195.17486899,23.485,23.45,33.27]
[1673848493897,195.17486899,23.485,23.451,37.0]
[1673848494223,195.17486899,23.485,23.454,20.0]
[1673848494537,195.17486899,23.485,23.47,16.43]
[1673848494966,212.22059699,23.485,23.47,16.43]
[1673848495789,212.22059699,23.485,23.46,16.72]
[1673848496223,191.65841797,23.483,23.46,16.72]
[1673848496439,195.09077448,23.484,23.46,16.72]
[1673848496641,211.65841797,23.483,23.46,16.72]
[1673848497277,17.045728,23.485,23.47,16.44]
[1673848501918,17.045728,23.485,23.462,20.0]
[1673848502094,37.0,23.484,23.461,20.0]
[1673848502319,37.0,23.484,23.456,20.0]
[1673848502320,20.0,23.483,23.456,20.0]
[1673848502629,17.0,23.482,23.456,20.0]
[1673848502829,20.0,23.481,23.456,20.0]
[1673848503160,17.0,23.48,23.456,20.0]
[1673848503485,20.0,23.479,23.456,20.0]
[1673848503691,17.0,23.478,23.456,20.0]
[1673848503898,20.0,23.477,23.456,20.0]
[1673848504106,17.0,23.476,23.45,23.11]
[1673848504423,20.0,23.475,23.45,23.11]
[1673848504952,20.0,23.482,23.452,111.3772]
[1673848505149,20.0,23.484,23.452,225.9292]
[1673848505358,20.0,23.484,23.455,17.0]
[1673848505775,23.26,23.5,23.461,20.0]
[1673848505997,20.0,23.485,23.462,37.0]
[1673848506190,20.0,23.485,23.463,20.0]
[1673848506835,20.0,23.485,23.465,20.0]
[1673848507034,17.0,23.484,23.465,20.0]
[1673848507874,20.0,23.485,23.465,20.0]
[1673848508398,20.0,23.485,23.466,17.0]
[1673848508731,20.0,23.485,23.47,23.05]
[1673848509255,20.0,23.485,23.471,20.0]
[1673848509883,35.43986719,23.489,23.472,17.0]
[1673848510075,35.43986719,23.489,23.473,20.0]
[1673848510286,35.43986719,23.489,23.474,37.0]
[1673848511018,15.1551243,23.486,23.481,20.0]
[1673848512284,17.051472,23.489,23.481,20.0]
[1673848514190,11.416072,23.489,23.481,20.0]
[1673848514385,23.07,23.51,23.483,20.0]
[1673848514599,20.0,23.516,23.483,20.0]
[1673848514798,20.0,23.516,23.484,17.0]
[1673848515013,17.036578,23.511,23.485,20.0]
[1673848515227,23.07,23.51,23.473,529.13782842]
[1673848515961,20.0,23.509,23.473,529.13782842]
[1673848516377,20.0,23.509,23.48,23.07]
[1673848516593,20.0,23.509,23.481,415.48813895]
[1673848516917,20.0,23.51,23.491,20.0]
[1673848517232,17.036578,23.511,23.492,434.98204836]
[1673848517449,17.036578,23.511,23.493,431.98204836]
[1673848517639,17.036578,23.511,23.494,152.66204836]
[1673848517847,17.036578,23.511,23.494,20.0]
[1673848518817,20.0,23.51,23.494,20.0]
[1673848520053,20.0,23.51,23.491,138.8403]
[1673848520695,17.0,23.509,23.491,138.8403]
[1673848520897,20.0,23.508,23.491,138.8403]
[1673848521122,17.0,23.507,23.491,138.8403]
[1673848521339,20.0,23.506,23.491,138.8403]
[1673848521539,17.0,23.505,23.478,109.7502]
[1673848521753,20.0,23.504,23.479,116.8036]
[1673848521978,20.0,23.502,23.48,20.0]
[1673848522165,17.0,23.501,23.48,20.0]
[1673848522379,37.0,23.501,23.48,20.0]
[1673848525113,23.0,23.5,23.47,23.06]
[1673848525323,37.0,23.499,23.468,114.282]
[1673848525861,37.0,23.499,23.469,20.0]
[1673848526072,37.0,23.499,23.47,23.06]
[1673848526073,20.0,23.499,23.47,23.06]
[1673848526389,20.0,23.499,23.471,20.0]